bitfinex-derivatives/quotes_SOLF0:USTF0_20260305
["timestamp","ask_amount","ask_price","bid_price","bid_amount"]
[1772729797466,3.88542148,88.947,88.88,9.53402516]
[1772729797662,3.88542148,88.947,88.874,3.91876788]
[1772729799369,10.116,88.945,88.895,10.121]
[1772729799770,10.116,88.945,88.889,3.91876788]
[1772729799968,3.88542148,88.947,88.914,10.119]
[1772729800266,3.88542148,88.947,88.889,3.91876788]
[1772729800464,3.56022754,88.94,88.899,10.121]
[1772729801662,3.56022754,88.94,88.891,3.91876788]
[1772729801869,3.56022754,88.95,88.891,3.91876788]
[1772729802770,3.56022754,88.96,88.905,3.91876788]
[1772729803167,17.98170022,88.976,88.93,3.56022754]
[1772729803370,7.44564902,88.97,88.92,7.47899542]
[1772729803567,3.88542148,88.959,88.905,3.91876788]
[1772729803967,3.88542148,88.959,88.848,27.92991288]
[1772729803968,3.56022754,88.94,88.896,10.121]
[1772729804672,3.88542148,88.949,88.896,10.121]
[1772729804872,3.88542148,88.949,88.901,10.121]
[1772729805168,3.88542148,88.949,88.901,3.91876788]
[1772729806274,3.56022754,88.95,88.901,3.91876788]
[1772729806474,3.56022754,88.95,88.901,14.03976788]
[1772729806876,3.56022754,88.95,88.901,3.91876788]
[1772729807271,3.56022754,88.94,88.901,3.91876788]
[1772729807665,3.88542148,88.949,88.905,10.12]
[1772729808875,3.56022754,88.94,88.901,3.91876788]
[1772729809075,3.88542148,88.939,88.895,10.121]
[1772729809876,3.88542148,88.939,88.887,10.122]
[1772729811175,14.00242148,88.937,88.887,10.122]
[1772729811377,3.88542148,88.937,88.894,10.121]
[1772729812379,10.116,88.945,88.902,10.12]
[1772729812974,3.56022754,88.95,88.91,10.12]
[1772729813281,3.88542148,88.949,88.895,3.91876788]
[1772729813880,3.56022754,88.94,88.895,3.91876788]
[1772729814082,3.88542148,88.949,88.895,3.91876788]
[1772729814285,3.88542148,88.949,88.902,10.12]
[1772729814873,3.88542148,88.949,88.908,10.12]
[1772729815379,3.88542148,88.983,88.925,3.91876788]
[1772729815580,3.56022754,88.98,88.931,3.91876788]
[1772729815977,3.56022754,88.98,88.94,10.116]
[1772729817086,3.88542148,88.983,88.94,10.116]
[1772729818481,3.56022754,88.96,88.915,3.91876788]
[1772729819082,3.88542148,88.969,88.915,3.91876788]
[1772729819985,3.88542148,88.969,88.924,10.118]
[1772729820288,3.88542148,88.969,88.881,20.246]
[1772729820289,7.54343998,88.98,88.93,3.56022754]
[1772729820488,3.98321244,88.979,88.93,3.56022754]
[1772729820889,3.56022754,88.99,88.94,3.56022754]
[1772729821085,3.56022754,88.97,88.915,3.9779227]
[1772729821283,3.98321244,88.969,88.915,3.9779227]
[1772729821886,3.56022754,88.98,88.93,3.56022754]
[1772729822282,3.56022754,88.98,88.869,27.92991288]
[1772729822283,3.56022754,88.99,88.941,3.9779227]
[1772729822485,3.98321244,88.989,88.941,3.9779227]
[1772729823088,3.56022754,88.98,88.941,3.9779227]
[1772729823285,10.112,88.979,88.932,10.117]
[1772729824885,10.112,88.979,88.933,3.9779227]
[1772729825689,13.98375959,89.027,88.901,20.242]
[1772729825690,3.56022754,88.99,88.941,3.9779227]
[1772729826582,10.48268106,89.021,88.934,10.117]
[1772729826583,3.56022754,88.98,88.934,10.117]
[1772729826783,3.98321244,88.988,88.941,3.9779227]
[1772729827981,3.56022754,88.97,88.91,3.56022754]
[1772729828181,3.98321244,88.969,88.92,3.56022754]
[1772729828588,3.98321244,88.969,88.92,7.53815024]
[1772729828891,3.56022754,88.98,88.921,3.9779227]
[1772729829086,3.56022754,88.98,88.93,3.56022754]
[1772729829286,3.56022754,88.98,88.927,3.9779227]
[1772729829485,20.216,89.013,88.927,3.9779227]
[1772729829486,3.56022754,88.97,88.927,3.9779227]
[1772729830087,3.56022754,88.97,88.928,10.118]
[1772729830286,10.112,88.978,88.928,14.0959227]
[1772729830786,10.113,88.972,88.928,14.0959227]
[1772729831288,10.113,88.968,88.928,3.9779227]
[1772729831791,3.56022754,88.97,88.928,3.9779227]
[1772729832990,3.98321244,88.979,88.93,3.56022754]
[1772729833190,3.98321244,88.979,88.931,3.9779227]
[1772729833388,3.56022754,88.99,88.943,10.116]
[1772729833694,3.56022754,88.99,88.94,3.56022754]
[1772729833893,3.56022754,88.98,88.931,3.9779227]
[1772729834794,3.98321244,88.989,88.94,3.56022754]
[1772729834992,3.56022754,88.98,88.931,3.9779227]
[1772729835193,3.98321244,88.979,88.931,3.9779227]
[1772729835600,3.98321244,88.979,88.932,10.117]
[1772729836295,3.98321244,88.979,88.932,14.0949227]
[1772729837294,3.98321244,88.979,88.935,10.117]
[1772729838394,3.56022754,88.97,88.92,7.53815024]
[1772729838694,3.56022754,88.97,88.921,3.9779227]
[1772729839902,3.98321244,88.969,88.911,3.9779227]
[1772729840594,10.113,88.964,88.923,10.118]
[1772729840797,3.98321244,88.969,88.923,10.118]
[1772729840997,3.98321244,88.969,88.924,3.9779227]
[1772729841996,10.114,88.961,88.924,3.9779227]
[1772729842300,3.98321244,88.969,88.924,3.9779227]
[1772729842599,10.112,88.98,88.936,14.0949227]
[1772729842800,10.112,88.98,88.941,3.9779227]
[1772729843900,10.111,88.988,88.941,3.9779227]
[1772729844202,3.98321244,88.999,88.951,3.9779227]
[1772729844598,3.98321244,89.014,88.96,3.55837399]
[1772729844796,3.55837399,89.03,88.98,3.55837399]
[1772729844998,3.98321244,89.029,88.98,3.55837399]
[1772729845195,3.98321244,89.028,88.977,10.112]
[1772729845694,3.55837399,89.02,88.977,10.112]
[1772729845900,3.98321244,89.019,88.955,3.9779227]
[1772729846101,3.55837399,89.01,88.961,3.9779227]
[1772729846303,3.98321244,89.009,88.961,3.9779227]
[1772729847000,3.55837399,89.0,88.961,3.9779227]
[1772729847202,3.55837399,89.0,88.961,14.0919227]
[1772729847504,3.98321244,89.009,88.961,3.9779227]
[1772729848096,3.55837399,89.0,88.961,14.0919227]
[1772729848398,3.55837399,88.99,88.943,3.61426385]
[1772729848606,3.73628195,88.989,88.931,3.61426385]
[1772729848803,3.55837399,88.98,88.931,3.61426385]
[1772729849003,7.29465594,89.0,88.941,3.61426385]
[1772729849203,7.29465594,89.0,88.951,3.61426385]
[1772729849403,3.99575032,88.999,88.954,3.76213024]
[1772729852408,10.11,88.998,88.954,3.76213024]
[1772729852710,3.99575032,88.999,88.954,3.76213024]
[1772729853207,3.99575032,88.999,88.961,10.114]
[1772729853509,3.55837399,89.01,88.962,3.76213024]
[1772729853906,3.55837399,89.01,88.953,10.115]
[1772729853907,3.99575032,89.007,88.953,10.115]
[1772729854203,3.55837399,88.99,88.946,3.76213024]
[1772729854705,3.99575032,88.999,88.946,3.76213024]
[1772729856410,10.11,88.993,88.948,10.115]
[1772729857009,3.55837399,88.99,88.948,10.115]
[1772729857208,10.111,88.988,88.946,3.76213024]
[1772729857606,10.111,88.988,88.898,20.48221276]
[1772729857607,3.55837399,88.98,88.931,3.76213024]
[1772729858010,10.112,88.975,88.932,3.76213024]
[1772729858302,3.99575032,88.989,88.94,3.55837399]
[1772729858510,3.99575032,88.989,88.944,3.76213024]
[1772729859405,3.55837399,88.98,88.942,3.76213024]
[1772729859804,10.111,88.983,88.942,3.76213024]
[1772729860000,3.99575032,88.989,88.944,10.116]
[1772729860213,3.94591467,88.999,88.945,3.99061127]
[1772729861620,10.11,88.997,88.95,10.115]
[1772729862707,10.11,88.997,88.951,3.70728208]
[1772729864016,7.2434246,88.99,88.931,3.70728208]
[1772729864211,7.2434246,88.99,88.941,3.70728208]
[1772729864518,3.68505061,88.99,88.942,3.70728208]
[1772729864714,3.55837399,89.0,88.911,20.239]
[1772729864715,3.55837399,89.0,88.951,3.70728208]
[1772729865211,10.109,88.999,88.951,3.70728208]
[1772729865409,3.55837399,88.99,88.951,3.70728208]
[1772729866624,3.68505061,88.999,88.951,3.70728208]
[1772729867015,3.55837399,88.99,88.951,3.70728208]
[1772729867219,3.68505061,88.999,88.951,3.70728208]
[1772729867422,3.68505061,88.999,88.892,20.244]
[1772729867423,10.111,88.983,88.937,3.70728208]
[1772729868123,10.111,88.983,88.94,3.55837399]
[1772729868520,3.55837399,89.0,88.941,3.70728208]
[1772729868712,3.68505061,88.989,88.941,3.70728208]
[1772729869223,10.111,88.984,88.941,3.70728208]
[1772729869424,3.68505061,88.989,88.941,3.70728208]
[1772729869622,10.111,88.987,88.943,10.116]
[1772729871023,10.111,88.987,88.945,10.116]
[1772729871221,3.68505061,88.989,88.946,3.70728208]
[1772729871422,3.55837399,89.0,88.951,3.70728208]
[1772729871820,3.68505061,88.999,88.952,10.115]
[1772729872124,3.68505061,88.999,88.951,3.70728208]
[1772729872915,3.68505061,88.992,88.951,3.70728208]
[1772729873117,3.68505061,88.989,88.937,3.70728208]
[1772729873317,3.68505061,88.989,88.941,3.70728208]
[1772729873520,10.11,88.994,88.951,3.70728208]
[1772729874122,10.11,88.994,88.953,3.70728208]
[1772729874719,3.55837399,89.0,88.949,3.70728208]
[1772729874720,10.11,88.992,88.949,3.70728208]
[1772729875120,10.11,88.992,88.951,10.115]
[1772729875524,10.11,88.992,88.949,3.70728208]
[1772729876715,10.11,88.992,88.94,3.55837399]
[1772729876716,10.11,88.992,88.951,3.70728208]
[1772729877025,3.55837399,89.0,88.951,3.70728208]
[1772729877026,3.68505061,88.998,88.951,3.70728208]
[1772729878622,10.11,88.996,88.953,3.70728208]
[1772729879621,10.11,88.996,88.954,10.114]
[1772729879823,3.88442692,88.995,88.954,14.06851631]
[1772729882429,10.47826385,89.031,88.912,20.239]
[1772729882430,3.55837399,88.98,88.939,3.95451631]
[1772729882631,3.88442692,88.989,88.939,3.95451631]
[1772729882925,3.55837399,89.0,88.956,3.95451631]
[1772729884123,10.11,88.999,88.956,3.95451631]
[1772729884324,10.11,88.999,88.958,3.95451631]
[1772729885228,10.11,88.993,88.958,3.95451631]
[1772729885424,3.55837399,88.99,88.945,3.95451631]
[1772729885630,3.88442692,88.989,88.945,3.95451631]
[1772729885930,3.88442692,88.969,88.923,3.95451631]
[1772729886522,10.112,88.973,88.925,3.95451631]
[1772729886729,10.112,88.973,88.931,3.95451631]
[1772729886920,13.67037399,88.98,88.932,10.117]
[1772729887120,3.55837399,88.98,88.933,3.95451631]
[1772729887326,3.88442692,88.979,88.933,3.95451631]
[1772729887830,10.112,88.973,88.933,3.95451631]
[1772729888425,10.113,88.965,88.933,3.95451631]
[1772729888627,3.55837399,88.96,88.914,3.95451631]
[1772729889529,3.88442692,88.99,88.931,3.95451631]
[1772729889732,3.88442692,88.979,88.931,3.95451631]
[1772729890434,3.55837399,88.96,88.912,3.95451631]
[1772729890632,3.88442692,88.969,88.921,3.95451631]
[1772729890830,13.67237399,88.96,88.91,3.55837399]
[1772729891028,3.55837399,88.96,88.911,3.95451631]
[1772729891630,3.88442692,88.969,88.915,3.95451631]
[1772729891933,3.88442692,88.969,88.921,3.95451631]
[1772729892833,3.88442692,88.967,88.921,3.95451631]
[1772729893036,3.55837399,88.96,88.921,3.95451631]
[1772729893832,10.114,88.958,88.921,3.95451631]
[1772729894228,10.114,88.958,88.91,3.55837399]
[1772729894435,10.114,88.958,88.907,3.95451631]
[1772729894436,3.55837399,88.95,88.907,3.95451631]
[1772729895539,10.115,88.947,88.907,3.95451631]
[1772729895936,3.88442692,88.958,88.909,3.95451631]
[1772729896136,3.88442692,88.958,88.911,3.95451631]
[1772729896338,10.115,88.955,88.911,3.95451631]
[1772729896933,10.115,88.948,88.911,3.95451631]
[1772729897638,10.116,88.941,88.9,3.55837399]
[1772729898435,10.116,88.941,88.901,3.95451631]
[1772729898638,3.55837399,88.95,88.871,438.43860569]
[1772729898639,3.88442692,88.969,88.911,3.95451631]
[1772729898839,3.55837399,88.96,88.911,3.95451631]
[1772729899639,7.44280091,88.96,88.911,3.95451631]
[1772729900240,7.44280091,88.96,88.913,10.119]
[1772729901736,3.88442692,88.959,88.91,3.55837399]
[1772729901942,3.55837399,88.94,88.896,3.95451631]
[1772729902138,3.88442692,88.939,88.896,3.95451631]
[1772729905540,3.88442692,88.919,88.877,3.95451631]
[1772729906340,10.117,88.929,88.883,10.123]
[1772729906541,10.117,88.929,88.891,3.95451631]
[1772729907641,3.88442692,88.935,88.893,3.94048152]
[1772729908034,3.84448703,88.922,88.87,3.56000538]
[1772729908339,3.56000538,88.91,88.865,3.94048152]
[1772729908643,3.84448703,88.919,88.865,3.94048152]
[1772729909040,10.12,88.907,88.865,3.94048152]
[1772729909845,3.84448703,88.919,88.865,3.94048152]
[1772729909846,10.119,88.915,88.87,3.56000538]
[1772729910143,3.84448703,88.919,88.87,3.56000538]
[1772729910346,3.84448703,88.919,88.865,3.94048152]
[1772729910540,13.92506029,88.903,88.86,3.56000538]
[1772729911035,3.80506029,88.917,88.87,3.56000538]
[1772729911242,3.80506029,88.917,88.863,3.71076505]
[1772729911243,3.56000538,88.91,88.863,3.71076505]
[1772729911741,10.121,88.902,88.863,3.71076505]
[1772729914344,10.121,88.894,88.851,3.71076505]
[1772729914536,3.80506029,88.904,88.851,3.71076505]
[1772729915444,3.56000538,88.89,88.84,3.56000538]
[1772729915643,3.80506029,88.889,88.841,3.71076505]
[1772729916046,3.80506029,88.889,88.843,10.127]
[1772729916245,3.80506029,88.889,88.85,3.56000538]
[1772729916644,3.80506029,88.889,88.85,7.27077043]
[1772729917145,3.80506029,88.903,88.86,3.56000538]
[1772729917348,3.80506029,88.917,88.87,3.56000538]
[1772729917740,3.80506029,88.917,88.871,10.124]
[1772729918747,10.119,88.915,88.871,10.124]
[1772729920148,10.119,88.915,88.872,3.71076505]
[1772729921049,3.80506029,88.909,88.863,10.125]
[1772729921349,3.80506029,88.909,88.86,3.56000538]
[1772729921550,10.12,88.908,88.861,10.125]
[1772729922346,10.12,88.903,88.86,3.56000538]
[1772729923146,13.92506029,88.903,88.86,3.56000538]
[1772729923342,3.80506029,88.897,88.85,3.56000538]
[1772729924046,10.121,88.896,88.85,13.68600538]
[1772729925452,3.80506029,88.889,88.85,3.56000538]
[1772729925649,3.80506029,88.889,88.845,3.71076505]
[1772729926048,3.80506029,88.889,88.85,3.56000538]
[1772729926550,3.80506029,88.889,88.831,3.71076505]
[1772729926945,10.123,88.879,88.831,3.71076505]
[1772729927146,10.123,88.879,88.841,3.71076505]
[1772729927451,3.80506029,88.889,88.85,13.68600538]
[1772729927643,3.56000538,88.91,88.85,17.39677043]
[1772729927847,3.80506029,88.902,88.85,17.39677043]
[1772729928050,10.122,88.887,88.85,7.27077043]
[1772729928251,3.80506029,88.899,88.85,3.71076505]
[1772729928853,10.123,88.881,88.84,3.56000538]
[1772729929649,10.124,88.875,88.836,3.71076505]
[1772729930752,10.124,88.875,88.84,3.56000538]
[1772729931150,3.80506029,88.886,88.84,3.56000538]
[1772729931151,10.123,88.882,88.841,10.127]
[1772729933350,10.123,88.882,88.841,13.83776505]
[1772729933553,3.80506029,88.9,88.851,3.71076505]
[1772729933747,3.80506029,88.9,88.794,157.628]
[1772729933748,10.12,88.904,88.87,3.56000538]
[1772729936060,10.12,88.904,88.862,10.125]
[1772729936961,3.80506029,88.91,88.862,10.125]
[1772729937559,10.12,88.903,88.861,3.71076505]
[1772729937757,3.80506029,88.902,88.861,3.71076505]
[1772729939452,3.8502101,88.917,88.88,3.56000538]
[1772729939657,3.8502101,88.939,88.89,3.56000538]
[1772729940558,10.117,88.929,88.89,3.56000538]
[1772729941253,3.8502101,88.939,88.89,3.56000538]
[1772729941254,3.8502101,88.937,88.891,10.122]
[1772729941458,3.8502101,88.951,88.91,3.56000538]
[1772729941956,10.116,88.939,88.9,3.56000538]
[1772729942160,3.56000538,88.92,88.87,7.36196268]
[1772729942364,3.8502101,88.919,88.87,7.36196268]
[1772729942563,3.8502101,88.919,88.88,3.56000538]
[1772729943363,3.8502101,88.919,88.87,3.56000538]
[1772729944166,3.8502101,88.929,88.89,3.56000538]
[1772729944862,17.69572314,88.969,88.89,3.56000538]
[1772729944863,3.56000538,88.95,88.891,10.122]
[1772729945164,3.8502101,88.944,88.9,3.56000538]
[1772729945864,3.8502101,88.944,88.901,3.8019573]
[1772729946167,10.115,88.949,88.91,3.56000538]
[1772729947360,10.115,88.949,88.855,20.252]
[1772729947361,3.8502101,88.981,88.921,3.8019573]
[1772729947565,3.8502101,88.969,88.91,3.56000538]
[1772729947767,3.8502101,88.969,88.911,3.8019573]
[1772729947966,3.8502101,88.957,88.911,3.8019573]
[1772729948167,3.8502101,88.973,88.92,3.56000538]
[1772729948365,3.8502101,88.973,88.93,3.56000538]
[1772729949066,10.113,88.968,88.93,3.56000538]
[1772729949663,10.113,88.968,88.846,27.92991288]
[1772729949664,3.8502101,88.992,88.95,3.56000538]
[1772729949871,3.8502101,89.007,88.951,3.8019573]
[1772729950062,3.56000538,89.0,88.951,3.8019573]
[1772729950261,3.8502101,88.999,88.951,3.8019573]
[1772729951266,3.8502101,88.999,88.96,3.56000538]
[1772729951467,3.8502101,88.999,88.97,3.56000538]
[1772729951669,3.8502101,88.999,88.96,3.56000538]
[1772729951872,10.11,88.998,88.96,3.56000538]
[1772729952166,3.8502101,88.979,88.921,3.8019573]
[1772729952669,10.113,88.969,88.921,3.8019573]
[1772729952966,17.67081519,89.027,88.85,62.0]
[1772729952967,3.56000538,88.95,88.85,82.48221276]
[1772729953170,3.8502101,88.939,88.89,3.56000538]
[1772729953770,3.56000538,88.93,88.881,3.8019573]
[1772729954570,3.8502101,88.939,88.881,3.8019573]
[1772729954769,10.117,88.937,88.881,3.8019573]
[1772729956476,10.117,88.937,88.883,3.8019573]
[1772729959876,3.8502101,88.962,88.89,3.8019573]
[1772729960373,10.115,88.947,88.895,3.8019573]
[1772729961373,3.8502101,88.962,88.899,3.8019573]
[1772729962382,10.115,88.95,88.899,3.8019573]
[1772729962680,3.8502101,88.949,88.899,3.8019573]
[1772729963179,3.8502101,88.949,88.901,3.8019573]
[1772729963481,3.8502101,88.967,88.901,3.8019573]
[1772729963782,10.115,88.955,88.905,10.12]
[1772729963976,3.8502101,88.954,88.901,3.8019573]
[1772729965576,3.8502101,88.947,88.901,3.8019573]
[1772729966480,10.116,88.941,88.901,3.8019573]
[1772729967184,3.68414083,88.935,88.887,10.122]
[1772729967790,3.68414083,88.935,88.888,3.87197245]
[1772729968392,10.117,88.933,88.888,3.87197245]
[1772729968593,10.117,88.933,88.891,3.87197245]
[1772729969190,13.80114083,88.933,88.891,3.87197245]
[1772729971594,10.118,88.929,88.891,3.87197245]
[1772729974796,3.56096836,88.93,88.891,3.87197245]
[1772729974991,4.00277586,88.929,88.88,7.50782491]
[1772729975192,4.00277586,88.929,88.881,10.123]
[1772729975697,4.00277586,88.929,88.848,20.254]
[1772729975698,3.56096836,88.94,88.891,3.94685655]
[1772729976099,4.00277586,88.944,88.901,3.94685655]
[1772729976697,4.00277586,88.961,88.911,3.94685655]
[1772729976898,7.56374422,88.96,88.911,3.94685655]
[1772729977101,10.115,88.952,88.911,3.94685655]
[1772729980495,4.00277586,88.967,88.921,3.94685655]
[1772729981303,4.00277586,88.967,88.93,3.56096836]
[1772729981509,4.00277586,88.967,88.921,3.94685655]
[1772729982005,10.112,88.974,88.931,3.94685655]
[1772729982204,3.56096836,88.98,88.931,3.94685655]
[1772729982509,4.00277586,88.981,88.931,3.94685655]
[1772729982895,4.00277586,88.981,88.94,3.56096836]
[1772729983102,4.00277586,88.981,88.941,3.94685655]
[1772729983795,10.111,88.986,88.941,3.94685655]
[1772729985005,14.11377586,88.984,88.941,3.94685655]
[1772729985398,4.00277586,88.979,88.93,3.56096836]
[1772729986000,4.00277586,88.979,88.931,3.94685655]
[1772729986604,4.00277586,88.979,88.94,3.56096836]
[1772729986805,4.00277586,88.979,88.931,3.94685655]
[1772729986997,4.00277586,88.977,88.931,3.94685655]
[1772729988506,10.112,88.976,88.94,3.56096836]
[1772729988903,10.112,88.976,88.932,10.117]
[1772729989108,10.112,88.976,88.933,3.94685655]
[1772729992610,10.113,88.972,88.933,3.94685655]
[1772729993512,4.00277586,88.969,88.92,3.56096836]
[1772729994010,10.114,88.961,88.921,3.94685655]
[1772729994211,10.114,88.961,88.922,10.118]
[1772729994808,10.114,88.961,88.921,3.94685655]
[1772729995009,10.114,88.955,88.921,3.94685655]
[1772729995205,4.00277586,88.959,88.91,3.56096836]
[1772729996110,4.00277586,88.959,88.91,7.50782491]
[1772729996411,10.115,88.949,88.91,7.50782491]
[1772729997610,14.11777586,88.949,88.91,3.94685655]
[1772729999010,4.00277586,88.949,88.912,10.119]
[1772729999602,4.00277586,88.949,88.918,10.119]
[1772730000112,4.00277586,88.949,88.911,3.85151167]
[1772730000312,3.91595641,88.962,88.921,3.85151167]
[1772730000914,3.91595641,88.962,88.93,3.55822861]
[1772730001107,3.55822861,88.97,88.921,3.85151167]
[1772730001309,3.91595641,88.989,88.94,7.40974028]
[1772730001509,10.111,88.984,88.947,10.115]
[1772730001704,3.55822861,88.98,88.94,3.85151167]
[1772730001910,3.91595641,88.979,88.931,3.85151167]
[1772730002210,3.91595641,88.979,88.94,10.116]
[1772730002510,3.91595641,88.969,88.92,3.55822861]
[1772730002708,3.91595641,88.959,88.91,3.55822861]
[1772730002906,3.91595641,88.959,88.9,7.40974028]
[1772730003214,3.91595641,88.959,88.911,3.85151167]
[1772730003611,3.55822861,88.93,88.88,3.55822861]
[1772730003820,3.91595641,88.929,88.871,3.85151167]
[1772730004007,3.55822861,88.94,88.89,7.40974028]
[1772730004207,3.91595641,88.945,88.9,3.55822861]
[1772730004611,3.91595641,88.939,88.88,3.55822861]
[1772730004813,3.91595641,88.939,88.82,219.582]
[1772730004814,3.55822861,88.95,88.9,3.55822861]
[1772730005115,3.55822861,88.95,88.9,7.40974028]
[1772730005713,7.47418502,88.95,88.9,7.40974028]
[1772730006016,3.55822861,88.96,88.911,3.85151167]
[1772730006212,3.55822861,88.95,88.894,3.85151167]
[1772730006520,3.55822861,88.94,88.894,3.85151167]
[1772730006817,3.91595641,88.949,88.894,3.85151167]
[1772730007017,3.91595641,88.949,88.9,3.55822861]
[1772730007215,10.115,88.947,88.894,3.85151167]
[1772730007415,3.91595641,88.946,88.901,3.85151167]
[1772730007615,3.91595641,88.961,88.92,3.55822861]
[1772730008316,3.55822861,88.96,88.911,3.85151167]
[1772730008508,13.67222861,88.96,88.911,3.85151167]
[1772730008714,3.55822861,88.95,88.9,3.55822861]
[1772730009109,3.55822861,88.95,88.9,7.40974028]
[1772730009315,3.55822861,88.95,88.901,3.85151167]
[1772730009712,10.116,88.942,88.901,3.85151167]
[1772730010617,13.67322861,88.95,88.901,3.85151167]
[1772730010820,10.115,88.95,88.91,3.55822861]
[1772730011917,3.91595641,88.975,88.93,3.55822861]
[1772730013219,3.91595641,88.975,88.931,3.85151167]
[1772730013418,3.91595641,88.975,88.867,20.249]
[1772730013419,3.91595641,88.979,88.884,3.85151167]
[1772730013619,3.91595641,88.979,88.93,3.55822861]
[1772730013914,3.91595641,88.955,88.91,3.55822861]
[1772730014119,3.55822861,88.96,88.911,3.85151167]
[1772730014325,7.47418502,88.97,88.911,3.85151167]
[1772730014618,3.55822861,88.98,88.93,3.55822861]
[1772730015013,7.47418502,88.98,88.93,3.55822861]
[1772730016518,10.112,88.973,88.93,3.55822861]
[1772730016920,10.112,88.978,88.93,3.55822861]
[1772730017110,3.55822861,88.98,88.93,3.55822861]
[1772730017422,3.55822861,88.97,88.92,3.55822861]
[1772730017616,3.55822861,88.98,88.92,3.55822861]
[1772730017925,3.55822861,88.97,88.92,3.55822861]
[1772730018120,3.55822861,88.99,88.94,3.55822861]
[1772730018318,8.46328201,88.989,88.94,3.55822861]
[1772730018518,3.55822861,88.97,88.91,3.55822861]
[1772730018821,3.55822861,88.96,88.91,3.55822861]
[1772730020221,10.115,88.95,88.903,10.12]
[1772730020519,10.113,88.966,88.92,3.55822861]
[1772730020718,3.55822861,88.97,88.92,3.55822861]
[1772730020915,3.55822861,88.97,88.878,20.64267723]
[1772730021117,3.55822861,88.96,88.91,3.55822861]
[1772730021319,10.115,88.95,88.91,3.55822861]
[1772730021720,10.48028607,88.99,88.847,27.52356964]
[1772730021721,10.113,88.966,88.92,3.55822861]
[1772730021920,3.55822861,88.98,88.92,3.55822861]
[1772730022120,3.55822861,88.98,88.827,46.21094451]
[1772730022121,3.55822861,88.96,88.91,3.55822861]
[1772730022418,10.115,88.952,88.91,13.67822861]
[1772730022622,10.115,88.952,88.91,13.67866083]
[1772730023024,3.55866083,88.96,88.91,3.55866083]
[1772730023724,3.55866083,88.96,88.911,10.119]
[1772730023921,3.55866083,88.96,88.91,3.55866083]
[1772730024118,3.55866083,88.96,88.878,20.64267723]
[1772730024119,10.114,88.956,88.92,3.55866083]
[1772730024321,17.74706259,88.989,88.93,3.55866083]
[1772730024527,3.55866083,88.99,88.93,3.55866083]
[1772730024720,8.5175036,88.989,88.93,3.55866083]
[1772730024924,3.55866083,88.99,88.94,3.55866083]
[1772730025122,3.55866083,89.0,88.898,20.64267723]
[1772730025326,3.55866083,89.01,88.95,3.55866083]
[1772730025723,10.11,88.998,88.943,10.116]
[1772730025928,10.11,88.998,88.95,3.55866083]
[1772730026129,3.55866083,89.0,88.95,3.55866083]
[1772730026430,10.11,88.999,88.95,3.55866083]
[1772730027432,10.11,88.999,88.951,10.115]
[1772730028029,3.55866083,89.0,88.901,20.242]
[1772730028030,10.11,88.993,88.943,10.116]
[1772730028425,20.209,89.044,88.94,3.55866083]
[1772730028426,10.111,88.986,88.94,3.55866083]
[1772730028633,3.55866083,89.0,88.94,3.55866083]
[1772730028932,3.55866083,89.0,88.901,20.242]
[1772730029129,3.55866083,89.0,88.95,3.55866083]
[1772730029433,3.55866083,89.01,88.96,3.55866083]
[1772730029635,3.55866083,89.01,88.95,3.55866083]
[1772730029830,10.11,88.994,88.944,10.116]
[1772730030031,10.11,88.994,88.95,3.55866083]
[1772730031334,10.109,89.002,88.95,3.55866083]
[1772730031534,3.55866083,89.01,88.96,3.55866083]
[1772730031837,3.55866083,89.0,88.95,3.55866083]
[1772730032038,10.11,88.997,88.95,3.55866083]
[1772730032234,10.11,88.997,88.914,20.239]
[1772730032235,3.55866083,88.99,88.94,3.55866083]
[1772730032638,10.11,88.997,88.95,3.55866083]
[1772730033235,10.11,88.997,88.95,13.67366083]
[1772730033941,10.109,89.005,88.96,3.55866083]
[1772730034641,10.108,89.012,88.97,3.55866083]
[1772730034834,10.108,89.012,88.96,3.55866083]
[1772730035241,3.55866083,89.0,88.94,3.55866083]
[1772730035440,3.55866083,89.0,88.95,3.55866083]
[1772730035641,10.109,88.999,88.951,10.115]
[1772730035841,3.55866083,89.01,88.96,3.55866083]
[1772730037244,10.109,89.008,88.918,20.238]
[1772730037444,10.109,89.008,88.96,3.55866083]
[1772730038444,10.109,89.008,88.962,10.114]
[1772730038936,3.55866083,89.0,88.95,3.55866083]
[1772730039534,10.111,88.99,88.944,10.116]
[1772730040943,10.111,88.99,88.95,3.55866083]